fUSD/lending_fUSD_20251222
["ID","MTS","AMOUNT","RATE_DAILY","PERIOD"]
[399460058,1766373043529,-2095.0,0.00021589,2]
[399460059,1766373043538,-2095.0,0.00021622,2]
[399460060,1766373043547,-151.25160454,0.00021649,2]
[399460061,1766373043556,-151.0,0.00021732,2]
[399460062,1766373043565,-277.35679052,0.00021732,2]
[399460063,1766373043574,-2095.0,0.00021736,2]
[399460064,1766373043583,-2095.0,0.00021757,2]
[399460065,1766373043592,-2095.0,0.00021771,2]
[399460066,1766373043601,-265383.6756556,0.00021779,2]
[399460067,1766373043610,-2095.0,0.00021789,2]
[399460068,1766373043622,-2095.0,0.00021813,2]
[399460069,1766373043631,-6250.3435069,0.00021819,2]
[399460070,1766373043640,-140477.7573644,0.00021822,2]
[399460071,1766373043649,-2095.0,0.00021846,2]
[399460072,1766373043659,-2095.0,0.0002188,2]
[399460073,1766373043667,-2095.0,0.00021907,2]
[399460074,1766373043677,-2095.0,0.00021908,2]
[399460075,1766373043687,-5000.0,0.00021918,2]
[399460076,1766373043696,-711.83538196,0.00021918,2]
[399460077,1766373043705,-5621.1,0.00022,7]
[399460078,1766373043714,-4840.2302854,0.00022021,2]
[399460079,1766373043723,-2095.0,0.00022136,2]
[399460080,1766373043733,-3815.82573577,0.00022167,2]
[399460081,1766373043742,-2095.0,0.00022171,2]
[399460082,1766373043751,-14520.6908563,0.00022192,2]
[399460083,1766373043759,-174.64043105,0.00022325,2]
[399460084,1766373043768,-352.0,0.00022392,2]
[399460085,1766373043777,-1098.0,0.00022546,2]
[399460086,1766373043786,-1002.5,0.00022831,2]
[399460087,1766373043795,-256.08,0.00022852,2]
[399460088,1766373043805,-400.0,0.00023,2]
[399460089,1766373043814,-784.25308604,0.00023079,2]
[399460090,1766373043823,-151.0,0.00023101,2]
[399460091,1766373043832,-287.61899177,0.00023101,2]
[399460092,1766373043842,-11153.0,0.00023114,2]
[399460093,1766373043851,-1000.0,0.00023176,2]
[399460094,1766373043860,-151.25160454,0.00023195,2]
[399460095,1766373043871,-1326.4,0.00023264,2]
[399460096,1766373043880,-1609.0,0.00023264,2]
[399460097,1766373043889,-520.13,0.00023264,2]
[399460098,1766373043898,-1267.218,0.00023264,2]
[399460099,1766373043907,-912.827,0.00023264,2]
[399460100,1766373043916,-1198.0,0.00023264,2]
[399460101,1766373043925,-2429.0,0.00023264,2]
[399460102,1766373043933,-566.465,0.00023264,2]
[399460103,1766373043943,-4839.31,0.00023264,2]
[399460104,1766373043952,-5621.1,0.000235,7]
[399460105,1766373043960,-3470.125,0.000236,2]
[399460106,1766373043970,-614.537,0.000236,2]
[399460107,1766373043979,-188.81,0.00023653,2]
[399460108,1766373043988,-1098.0,0.00023673,2]
[399460109,1766373043998,-500.0,0.0002389,2]
[399460110,1766373044008,-151.13,0.00024051,2]
[399460111,1766373044018,-200.0,0.00024139,2]
[399460112,1766373044027,-265383.6756556,0.00024207,2]
[399460113,1766373044037,-6250.3435069,0.00024229,2]
[399460114,1766373044046,-140477.7573644,0.00024234,2]
[399460115,1766373044055,-2000.0,0.000244,2]
[399460116,1766373044065,-151.0,0.0002447,2]
[399460117,1766373044074,-298.26089446,0.0002447,2]
[399460118,1766373044084,-4840.2302854,0.00024532,2]
[399460119,1766373044094,-1000.0,0.00024658,2]
[399460120,1766373044104,-710.35,0.00024658,2]
[399460121,1766373044113,-151.25160454,0.00024741,2]
[399460122,1766373044126,-151.0,0.00024797,7]
[399460123,1766373044136,-500.0,0.00024799,2]
[399460124,1766373044146,-517.20935872,0.00024799,2]
[399460125,1766373044156,-510.52648478,0.00024799,2]
[399460126,1766373044171,-508.69771691,0.00024799,2]
[399460127,1766373044181,-500.0,0.00024799,2]
[399460128,1766373044192,-451.43777448,0.00024799,2]
[399460129,1766373044202,-500.0,0.00024799,2]
[399460130,1766373044211,-500.0,0.00024799,2]
[399460131,1766373044221,-500.0,0.00024799,2]
[399460132,1766373044230,-500.0,0.00024799,2]
[399460133,1766373044241,-500.0,0.00024799,2]
[399460134,1766373044250,-500.0,0.00024799,2]
[399460135,1766373044475,-535.91773514,0.00024799,2]
[399460136,1766373044485,-549688.245297,0.000248,2]
[399460137,1766373044495,-1002.5,0.00024852,2]
[399460138,1766373044504,-1098.0,0.00024856,2]
[399460139,1766373044513,-300.0,0.00024899,10]
[399460140,1766373044522,-666.0,0.00024899,2]
[399460141,1766373044531,-300.0,0.00024899,10]
[399460142,1766373044539,-666.0,0.00024899,2]
[399460143,1766373044548,-2000.0,0.000249,2]
[399460144,1766373044557,-450.0,0.00025,2]
[399460145,1766373044566,-784.25308604,0.00025575,2]
[399460146,1766373044575,-5621.1,0.000256,7]
[399460147,1766373044584,-188.84698626,0.000257,2]
[399460148,1766373044593,-262.48165757,0.000257,2]
[399460149,1766373044602,-221.00502845,0.00025839,2]
[399460150,1766373044611,-309.29654756,0.00025839,2]
[399460151,1766373044621,-213.4,0.0002595,2]
[399460152,1766373044630,-1098.0,0.00026099,2]
[399460153,1766373044640,-300.0,0.00026263,10]
[399460154,1766373044648,-671.19063169,0.00026263,2]
[399460155,1766373044657,-1326.0,0.00026264,2]
[399460156,1766373044666,-1609.0,0.00026264,2]
[399460157,1766373044675,-518.0,0.00026264,2]
[399460158,1766373044683,-1262.0,0.00026264,2]
[399460159,1766373044692,-911.0,0.00026264,2]
[399460160,1766373044701,-1198.0,0.00026264,2]
[399460161,1766373044710,-2429.0,0.00026264,2]
[399460162,1766373044719,-564.0,0.00026264,2]
[399460163,1766373044728,-151.25160454,0.00026288,2]
[399460164,1766373044737,-343.42976349,0.00026297,2]
[399460165,1766373044746,-3457.0,0.000266,2]
[399460166,1766373044756,-612.0,0.000266,2]
[399460167,1766373044765,-1000.0,0.00026676,2]
[399460168,1766373044775,-251.81022194,0.00026737,2]
[399460169,1766373044784,-1002.5,0.00026873,2]
[399460170,1766373044793,-213.4,0.000269,2]
[399460171,1766373044802,-157.34,0.00026933,2]
[399460172,1766373044811,-500.0,0.00027,2]
[399460173,1766373044821,-320.74051982,0.00027208,2]
[399460174,1766373044830,-150.0,0.00027369,2]
[399460175,1766373044840,-329.6,0.00027397,7]
[399460176,1766373044849,-1438.65,0.00027397,2]
[399460177,1766373044858,-500.0,0.00027397,14]
[399460178,1766373044867,-300.0,0.00027397,2]
[399460179,1766373044877,-710.35,0.00027397,2]
[399460180,1766373044887,-1098.0,0.00027404,5]
[399460181,1766373044896,-9587.77,0.00027671,2]
[399460182,1766373044905,-5621.1,0.000277,7]
[399460183,1766373044914,-157.34,0.00027766,2]
[399460184,1766373044923,-151.25160454,0.00027834,2]
[399460185,1766373044933,-174.64043105,0.0002785,2]
[399460186,1766373044942,-789.72085991,0.000279,2]
[399460187,1766373044950,-1859.68512571,0.000279,2]
[399460188,1766373044959,-251.87649155,0.0002797,2]
[399460189,1766373044968,-784.25308604,0.00028072,2]
[399460190,1766373044977,-2000.0,0.000281,2]
[399460191,1766373044986,-332.60791905,0.00028577,2]
[399460192,1766373044995,-1000.0,0.000286,2]
[399460193,1766373045005,-1045.0,0.000287,2]
[399460194,1766373045014,-1098.0,0.00028774,5]
[399460195,1766373045024,-3330.55273072,0.00028859,2]
[399460196,1766373045033,-1002.5,0.00028895,2]
[399460197,1766373045043,-550.0,0.00029,2]
[399460198,1766373045052,-300.0,0.00029263,10]
[399460199,1766373045062,-1609.0,0.00029264,2]
[399460200,1766373045072,-1326.0,0.00029264,2]
[399460201,1766373045082,-518.0,0.00029264,2]
[399460202,1766373045091,-1262.0,0.00029264,2]
[399460203,1766373045100,-911.0,0.00029264,2]
[399460204,1766373045110,-1198.0,0.00029264,2]
[399460205,1766373045120,-2429.0,0.00029264,2]
[399460206,1766373045130,-564.0,0.00029264,2]
[399460207,1766373045139,-3457.0,0.000296,2]
[399460208,1766373045150,-612.0,0.000296,2]
[399460209,1766373045160,-300.0,0.00029799,10]
[399460210,1766373045172,-344.91441206,0.00029946,2]
[399460211,1766373045182,-3581.04819347,0.0002998,2]
[399460212,1766373045191,-7477.54348802,0.0003,2]
[399460213,1766373045203,-1000.0,0.0003,7]
[399460214,1766373045213,-262.48165757,0.000301,2]
[399460215,1766373045223,-710.35,0.00030137,2]
[399460216,1766373045235,-4372.9998739,0.000302,7]
[399460217,1766373045281,-784.68059232,0.000302,7]
[399460218,1766373045293,-463.41953378,0.000302,7]
[399460219,1766373045304,-187.57859559,0.00030213,5]
[399460220,1766373045315,-766.51570007,0.00030213,5]
[399460221,1766373045328,-143.90570434,0.00030213,5]
[399460222,1766373045338,-1000.0,0.000304,2]
[399460223,1766373045347,-3239.58253132,0.000304,2]
[399460225,1766373045387,-682.81730511,0.000304,2]
[399460226,1766373045605,-309.66881756,0.0001851,2]
[399460227,1766373045615,-151.6579716,0.000188,2]
[399460228,1766373045625,-23.97821084,0.00023264,2]
[399460229,1766373045641,-489.64607935,0.00023264,2]
[399460230,1766373045652,-736.43301719,0.00023264,2]
[399460287,1766373047420,-892.75368708,0.000169,2]
[399460288,1766373048946,-1110.82881642,0.000169,2]
[399460289,1766373048987,-1660.4287062,0.00016081,2]
[399460290,1766373048996,-476.5827534,0.000169,2]
[399460291,1766373049005,-2480.16525688,0.00017555,2]
[399460292,1766373049014,-500.0,0.0002,2]
[399460293,1766373049023,-5279.94269262,0.00023264,2]
[399460294,1766373049033,-6530.0,0.00026264,2]
[399460295,1766373049042,-4805.0,0.00026264,2]
[399460296,1766373049051,-4805.0,0.00029264,2]
[399460297,1766373049061,-6530.0,0.00029264,2]
[399460298,1766373049070,-31980.60016357,0.000304,2]
[399460299,1766373049079,-784.25308604,0.00030568,2]
[399460300,1766373049089,-152.0,0.00030658,2]
[399460301,1766373049099,-5525.0,0.000312,3]
[399460302,1766373049109,-357.6762453,0.00031315,2]
[399460303,1766373049119,-200.0,0.00031413,2]
[399460304,1766373049129,-1098.0,0.00031724,5]
[399460305,1766373049139,-184.88956485,0.00031787,8]
[399460306,1766373049147,-2000.0,0.000318,2]
[399460307,1766373049158,-1000.0,0.000319,2]
[399460308,1766373049170,-5525.0,0.000319,5]
[399460309,1766373049179,-518.0,0.00032264,2]
[399460310,1766373049189,-1262.0,0.00032264,2]
[399460311,1766373049199,-2429.0,0.00032264,2]
[399460312,1766373049208,-564.0,0.00032264,2]
[399460313,1766373049218,-4805.0,0.00032264,2]
[399460314,1766373049227,-6530.0,0.00032264,2]
[399460315,1766373049241,-1000.0,0.000323,2]
[399460316,1766373049251,-3457.0,0.000326,2]
[399460317,1766373049261,-612.0,0.000326,2]
[399460318,1766373049270,-370.91026638,0.00032684,2]
[399460319,1766373049280,-710.35,0.00032877,2]
[399460320,1766373049290,-500.0,0.00032877,2]
[399460321,1766373049301,-416.88323971,0.00032877,2]
[399460322,1766373049310,-500.0,0.00032877,7]
[399460323,1766373049319,-500.0,0.00032877,7]
[399460324,1766373049328,-500.0,0.00032877,7]
[399460325,1766373049337,-500.0,0.00032877,7]
[399460326,1766373049346,-500.0,0.00032877,7]
[399460327,1766373049355,-500.0,0.00032877,7]
[399460328,1766373049365,-500.0,0.00032877,7]
[399460329,1766373049374,-500.0,0.00032877,7]
[399460330,1766373049383,-500.0,0.00032877,7]
[399460331,1766373049393,-500.0,0.00032877,7]
[399460332,1766373049403,-500.0,0.00032877,7]
[399460333,1766373049412,-500.0,0.00032877,7]
[399460334,1766373049421,-500.0,0.00032877,7]
[399460335,1766373049430,-500.0,0.00032877,7]
[399460336,1766373049439,-500.0,0.00032877,7]
[399460337,1766373049449,-500.0,0.00032877,7]
[399460338,1766373049459,-500.0,0.00032877,7]
[399460339,1766373049468,-500.0,0.00032877,7]
[399460340,1766373049477,-500.0,0.00032877,7]
[399460341,1766373049486,-500.0,0.00032877,7]
[399460342,1766373049495,-500.0,0.00032877,7]
[399460343,1766373049504,-500.0,0.00032877,7]
[399460344,1766373049513,-500.0,0.00032877,7]
[399460345,1766373049522,-500.0,0.00032877,7]
[399460346,1766373049531,-500.0,0.00032877,7]
[399460347,1766373049540,-500.0,0.00032877,7]
[399460348,1766373049549,-500.0,0.00032877,7]
[399460349,1766373049558,-641.01375301,0.00032877,7]
[399460350,1766373049567,-500.0,0.00032877,7]
[399460351,1766373049577,-500.0,0.00032877,7]
[399460352,1766373049586,-891.91,0.000329,14]
[399460353,1766373049596,-666.11,0.000329,14]
[399460354,1766373049605,-2726.91,0.000329,2]
[399460355,1766373049615,-5621.1,0.000329,14]
[399460356,1766373049624,-1000.0,0.00032926,10]
[399460357,1766373049633,-1000.0,0.00032926,10]
[399460358,1766373049642,-1000.0,0.00033063,10]
[399460359,1766373049652,-1000.0,0.00033063,10]
[399460360,1766373049662,-784.25308604,0.00033065,2]
[399460361,1766373049671,-1000.0,0.00033165,2]
[399460362,1766373049680,-1000.0,0.000332,10]
[399460363,1766373049689,-1000.0,0.000332,10]
[399460364,1766373049698,-1098.0,0.0003331,5]
[399460365,1766373049708,-1000.0,0.00033337,10]
[399460366,1766373049717,-1000.0,0.00033337,10]
[399460367,1766373049728,-174.64043105,0.00033375,2]
[399460368,1766373049739,-1000.0,0.00033474,10]
[399460369,1766373049747,-1000.0,0.00033474,10]
[399460370,1766373049757,-1000.0,0.000336,7]
[399460371,1766373049766,-1000.0,0.00033611,10]
[399460372,1766373049775,-1000.0,0.00033611,10]
[399460373,1766373049784,-178.44,0.00033699,2]
[399460374,1766373049793,-150.0,0.00033699,2]
[399460375,1766373049802,-170.67,0.00033699,2]
[399460376,1766373049815,-666.11,0.000337,14]
[399460377,1766373049824,-2726.91,0.000337,2]
[399460378,1766373049833,-1000.0,0.00033748,10]
[399460379,1766373049843,-1000.0,0.00033748,10]
[399460380,1766373049851,-1000.0,0.00033885,10]
[399460381,1766373049861,-1000.0,0.00033885,10]
[399460382,1766373049870,-1000.0,0.00034022,10]
[399460383,1766373049879,-1000.0,0.00034022,10]
[399460384,1766373049889,-384.63394623,0.00034053,2]
[399460385,1766373049898,-152.0,0.00034062,3]
[399460386,1766373049907,-1000.0,0.00034159,10]
[399460387,1766373049917,-1000.0,0.00034159,10]
[399460388,1766373049927,-1000.0,0.00034296,10]
[399460389,1766373049936,-1000.0,0.00034296,10]
[399460390,1766373049945,-5621.1,0.000343,14]
[399460391,1766373049954,-1000.0,0.00034433,10]
[399460392,1766373049964,-1000.0,0.00034433,10]
[399460393,1766373049974,-666.11,0.000345,14]
[399460394,1766373049983,-2726.91,0.000345,2]
[399460395,1766373049993,-262.48165757,0.000345,2]
[399460396,1766373050006,-1000.0,0.0003457,10]
[399460397,1766373050015,-1000.0,0.0003457,10]
[399460398,1766373050024,-1000.0,0.00034707,10]
[399460399,1766373050034,-1000.0,0.00034707,10]
[399460400,1766373050043,-1000.0,0.00034844,10]
[399460401,1766373050053,-1000.0,0.00034844,10]
[399460402,1766373050063,-1098.0,0.00034975,5]
[399460403,1766373050072,-1000.0,0.00034981,10]
[399460404,1766373050081,-1000.0,0.00034981,10]
[399460405,1766373050091,-300.0,0.00034999,10]
[399460406,1766373050100,-2852.663864,0.00035,28]
[399460407,1766373050110,-2852.663864,0.00035,28]
[399460408,1766373050119,-2852.663864,0.00035,28]
[399460409,1766373050130,-2852.663864,0.00035,28]
[399460410,1766373050139,-1013.781592,0.00035,2]
[399460411,1766373050148,-1013.781592,0.00035,2]
[399460412,1766373050159,-1013.781592,0.00035,2]
[399460413,1766373050173,-1013.781592,0.00035,2]
[399460414,1766373050182,-426.87477,0.00035,7]
[399460415,1766373050192,-426.87477,0.00035,7]
[399460416,1766373050205,-426.87477,0.00035,7]
[399460417,1766373050214,-426.87477,0.00035,7]
[399460418,1766373050224,-82512.78133453,0.00035,3]
[399460419,1766373050320,-777.47196711,0.00035,3]
[399460420,1766373070005,293.6415984,0.000356,30]
[399460421,1766373101667,1348.0,0.00035616,30]
[399460425,1766373347876,829.06915915,0.00035616,120]
[399460426,1766373375585,500.0,0.00035342,30]
[399460427,1766373375792,500.0,0.00035342,30]
[399460428,1766373375947,500.0,0.00035342,30]
[399460429,1766373376099,500.0,0.00035342,30]
[399460430,1766373376304,500.0,0.00035342,30]
[399460431,1766373376459,520.0,0.00035342,30]
[399460432,1766373676282,500.0,0.00034795,60]
[399460433,1766373676671,500.0,0.00034795,60]
[399460434,1766373676878,500.0,0.00034795,60]
[399460435,1766373677125,425.41,0.00034795,60]
[399460436,1766373693587,500.0,0.00034795,60]
[399460437,1766373693628,500.0,0.00034795,60]
[399460438,1766373694012,436.38149996,0.00034795,60]
[399460440,1766373919289,2953.06294699,9e-05,2]
[399460442,1766374056116,2067176.83466201,0.00035616,30]
[399460444,1766374204607,188.84698626,0.000115,7]
[399460450,1766374231634,-300.0,9.999e-05,2]
[399460453,1766374231647,-710.2,0.0001,2]
[399460455,1766374231660,-709.0,0.0001,2]
[399460457,1766374231672,-8718.21763523,0.0001,2]
[399460458,1766374231681,-155.66,0.00010038,2]
[399460459,1766374231691,-267.43106957,0.000107,2]
[399460460,1766374231700,-985.09829802,0.000108,2]
[399460464,1766374232253,-250.0,0.00010999,2]
[399460465,1766374232278,-300.0,0.00010999,2]
[399460466,1766374232289,-5532.68353942,0.00011,2]
[399460467,1766374232300,-300.0,0.00011,2]
[399460468,1766374232310,-300.0,0.00011618,2]
[399460469,1766374232319,-195.0,0.0001188,2]
[399460470,1766374232332,-250.0,0.0001188,2]
[399460471,1766374232342,-195.0,0.0001188,2]
[399460472,1766374232351,-300.0,0.0001188,2]
[399460473,1766374232360,-5928.63774799,0.00012,2]
[399460474,1766374232369,-195.0,0.00012411,2]
[399460475,1766374232378,-424.7441161,0.00012471,2]
[399460476,1766374232387,-155.66,0.00012547,2]
[399460477,1766374232396,-1845.78,0.00012813,2]
[399460478,1766374232406,-150.0,0.00012989,2]
[399460479,1766374232415,-596.00002808,0.00012989,2]
[399460480,1766374232427,-1001.83222297,0.00012989,2]
[399460481,1766374232437,-2371.45280414,0.0001299,2]
[399460482,1766374232461,-312.0,0.0001299,2]
[399460483,1766374232476,-43992.97817525,0.0001299,2]
[399460484,1766374232506,-938.58626969,0.0001299,2]
[399460485,1766374232520,-4308.82097488,0.0001299,2]
[399460486,1766374232534,-1850.0,0.0001299,2]
[399460487,1766374237755,-11954.12136567,0.0001299,2]
[399460488,1766374237766,-1364.2629872,0.0001299,2]
[399460489,1766374237867,-61979.27482017,0.0001299,2]
[399460490,1766374237876,-4412.95179133,0.00013,2]
[399460491,1766374237886,-5328.93897617,0.0001305,2]
[399460492,1766374237895,-1000.0,0.000135,2]
[399460493,1766374237904,-1050.21920627,0.000135,2]
[399460494,1766374237913,-1002.5937002,0.00013599,2]
[399460495,1766374237923,-195.0,0.00013642,2]
[399460496,1766374237932,-500.0,0.00013643,2]
[399460497,1766374237940,-500.0,0.00013643,2]
[399460498,1766374237950,-500.0,0.00013643,2]
[399460499,1766374237959,-500.0,0.00013643,2]
[399460500,1766374237968,-500.0,0.00013643,2]
[399460501,1766374237978,-500.51901365,0.00013643,2]
[399460502,1766374237987,-500.0,0.00013643,2]
[399460503,1766374237996,-150.0,0.00013646,2]
[399460504,1766374238006,-1000000.0,0.00013663,2]
[399460505,1766374238015,-166.66,0.00013699,2]
[399460506,1766374238024,-620.44,0.000137,2]
[399460507,1766374238033,-620.44,0.000137,2]
[399460508,1766374238043,-620.44,0.000137,2]
[399460509,1766374238052,-620.44,0.000137,2]
[399460510,1766374238062,-620.44,0.000137,2]
[399460511,1766374238072,-993.39878029,0.00013722,2]
[399460512,1766374238082,-150.99,0.00013732,2]
[399460513,1766374238092,-150.99,0.00013732,2]
[399460514,1766374238103,-299.99,0.00013732,2]
[399460515,1766374238112,-9999.99,0.00013732,2]
[399460516,1766374238122,-999.99,0.00013732,2]
[399460517,1766374238131,-26170.03,0.00013763,2]
[399460518,1766374238141,-166.66,0.00013836,2]
[399460519,1766374238151,-166.66,0.00013973,2]
[399460520,1766374238160,-1500.0,0.00014,2]
[399460521,1766374238169,-255.0,0.00014093,2]
[399460522,1766374238179,-166.66,0.0001411,2]
[399460523,1766374238188,-1000.0,0.00014191,2]
[399460524,1766374238197,-1000.0,0.00014191,2]
[399460525,1766374238206,-507.00799583,0.00014191,2]
[399460526,1766374238215,-1000.0,0.00014191,2]
[399460527,1766374238224,-1000.0,0.00014191,2]
[399460528,1766374238236,-1090.93800386,0.00014191,2]
[399460529,1766374238245,-166.66,0.00014247,2]
[399460530,1766374238254,-15708.21,0.0001437,2]
[399460531,1766374238264,-166.66,0.00014384,2]
[399460532,1766374238274,-10279.41003921,0.0001439,2]
[399460533,1766374238283,-912.70745201,0.00014553,2]
[399460534,1766374238293,-182.249,0.00014572,2]
[399460535,1766374238302,-289.07,0.00014572,2]
[399460536,1766374238312,-160.3,0.00014572,2]
[399460537,1766374238322,-1204.13904522,0.00014608,5]
[399460538,1766374238331,-500.0,0.00014608,2]
[399460539,1766374238341,-517.20935872,0.00014608,2]
[399460540,1766374238351,-500.0,0.00014608,2]
[399460541,1766374238361,-500.0,0.00014608,2]
[399460542,1766374238370,-500.0,0.00014608,2]
[399460543,1766374238380,-349.26999972,0.00014608,2]
[399460544,1766374238390,-500.0,0.00014608,2]
[399460545,1766374238400,-500.0,0.00014608,2]
[399460546,1766374238409,-557.08917325,0.00014608,2]
[399460547,1766374238419,-500.0,0.00014608,2]
[399460548,1766374238429,-500.0,0.00014608,2]
[399460549,1766374238438,-500.0,0.00014608,2]
[399460550,1766374238448,-500.0,0.00014608,2]
[399460551,1766374238458,-500.0,0.00014608,2]
[399460552,1766374238467,-500.0,0.00014608,2]
[399460553,1766374238477,-500.0,0.00014608,2]
[399460554,1766374238486,-500.0,0.00014608,2]
[399460555,1766374238496,-512.28287163,0.00014608,2]
[399460556,1766374238506,-864.28,0.00014608,2]
[399460557,1766374238517,-500.0,0.00014608,2]
[399460558,1766374238528,-500.0,0.00014608,2]
[399460559,1766374238538,-500.0,0.00014608,2]
[399460560,1766374238548,-451.43777448,0.00014608,2]
[399460561,1766374238558,-500.0,0.00014608,2]
[399460562,1766374238568,-500.0,0.00014608,2]
[399460564,1766374238578,-500.0,0.00014608,2]
[399460565,1766374238587,-500.0,0.00014608,2]
[399460567,1766374238599,-500.0,0.00014608,2]
[399460569,1766374238608,-500.0,0.00014608,2]
[399460571,1766374238617,-500.0,0.00014608,2]
[399460573,1766374238626,-500.0,0.00014608,2]
[399460574,1766374238636,-500.0,0.00014608,2]
[399460576,1766374238645,-535.91773514,0.00014608,2]
[399460578,1766374238655,-500.0,0.00014608,2]
[399460580,1766374238666,-501.05282462,0.00014608,2]
[399460581,1766374238676,-500.0,0.00014608,2]
[399460583,1766374238686,-500.0,0.00014608,2]
[399460585,1766374238696,-500.0,0.00014608,2]
[399460587,1766374238705,-500.0,0.00014608,2]
[399460589,1766374238714,-500.0,0.00014608,2]
[399460590,1766374238723,-500.0,0.00014608,2]
[399460592,1766374238733,-500.0,0.00014608,2]
[399460594,1766374238742,-500.0,0.00014608,2]
[399460596,1766374238751,-500.0,0.00014608,2]
[399460598,1766374238760,-500.0,0.00014608,2]
[399460600,1766374238770,-500.0,0.00014608,2]
[399460602,1766374238779,-500.0,0.00014608,2]
[399460603,1766374238788,-6310.10508474,0.00014639,2]
[399460605,1766374238798,-1500.0,0.00014739,2]
[399460607,1766374238807,-506.61121475,0.00014739,2]
[399460609,1766374238816,-853.92874992,0.00014739,2]
[399460611,1766374238825,-1500.0,0.00014739,2]
[399460613,1766374238835,-864.28,0.00014882,2]
[399460614,1766374238844,-6310.10508468,0.0001489,2]
[399460616,1766374238853,-11815.59,0.00014933,2]
[399460619,1766374238870,-5014.92,0.00014999,2]
[399460621,1766374238883,-2041.02448075,0.00015,2]
[399460623,1766374238894,-1344.90035388,0.00015,14]
[399460625,1766374238904,-7945.49825452,0.00015,2]
[399460626,1766374238913,-21356.21903813,0.00015,2]
[399460628,1766374238923,-1154.92232765,0.00015,2]
[399460630,1766374238933,-25864.54250308,0.00015,2]
[399460632,1766374238943,-300.0,0.00015006,2]
[399460634,1766374238953,-300.0,0.00015006,2]
[399460636,1766374238963,-300.0,0.00015006,2]
[399460638,1766374238972,-300.0,0.00015006,2]
[399460639,1766374238982,-264.35832401,0.00015006,2]
[399460641,1766374238991,-195.0,0.00015006,2]
[399460643,1766374239001,-300.0,0.00015006,2]
[399460645,1766374239011,-300.0,0.00015006,2]
[399460647,1766374239021,-300.0,0.00015006,2]
[399460649,1766374239031,-300.0,0.00015006,2]
[399460651,1766374239040,-300.0,0.00015006,2]
[399460652,1766374239050,-155.66,0.00015057,2]
[399460654,1766374239060,-1600.0,0.00015059,2]
[399460656,1766374239071,-277.18,0.00015068,2]
[399460658,1766374239081,-6310.10508468,0.00015141,2]
[399460660,1766374239091,-864.28,0.00015156,2]
[399460662,1766374239101,-2000.0,0.00015287,2]
[399460664,1766374239111,-831.2933,0.00015287,2]
[399460665,1766374239121,-433.0,0.00015288,2]
[399460667,1766374239132,-1517.64,0.000153,2]
[399460669,1766374239142,-151.0,0.00015352,2]
[399460671,1766374239153,-289.07,0.00015382,2]
[399460673,1766374239163,-6310.10508468,0.00015393,2]
[399460675,1766374239174,-505.93150973,0.000154,2]
[399460677,1766374239185,-864.28,0.0001543,2]
[399460678,1766374239194,-16703.53114941,0.00015556,2]
[399460680,1766374239204,-1000.0,0.0001558,2]
[399460682,1766374239215,-6310.10508468,0.00015644,2]
[399460684,1766374239226,-864.28,0.00015704,2]
[399460686,1766374239236,-2229.34280704,0.00015807,2]
[399460688,1766374239247,-51222.87,0.0001583,2]
[399460690,1766374239259,-736.82314427,0.00015835,2]
[399460692,1766374239269,-999.0,0.00015865,3]